bitfinex-derivatives/quotes_SOLF0:USTF0_20250206
["timestamp","ask_amount","ask_price","bid_price","bid_amount"]
[1738851198071,9.7134,198.96,198.88,13.64748738]
[1738851198278,0.03580221,198.95,198.92,0.03787057]
[1738851200269,0.03580221,198.95,198.94,5.0254]
[1738851200673,0.03580221,198.95,198.92,0.03787057]
[1738851201677,0.03580221,198.95,198.93,5.0256]
[1738851201876,0.03580221,198.95,198.92,0.03787057]
[1738851202279,0.03580221,198.95,198.93,5.0256]
[1738851203679,0.03580221,198.95,198.92,0.03787057]
[1738851205685,0.03580221,198.95,198.92,5.06367057]
[1738851206278,0.03580221,198.95,198.93,5.0255]
[1738851206484,0.03580221,198.95,198.92,0.03787057]
[1738851206979,0.03580221,198.95,198.76,246.9804274]
[1738851207178,21.8240341,198.95,198.76,195.72]
[1738851207482,5.0264,198.9,198.85,5.0274]
[1738851207881,5.027,198.88,198.82,5.0282]
[1738851208181,0.0336938,198.89,198.86,0.03292483]
[1738851208383,21.8240341,198.95,198.77,21.8240341]
[1738851208583,0.03869183,198.89,198.86,0.03710602]
[1738851210889,5.0269,198.88,198.86,0.03710602]
[1738851211186,0.03869183,198.89,198.86,0.03710602]
[1738851211386,0.03869183,198.89,198.86,5.06450602]
[1738851211586,0.03869183,198.89,198.86,0.03710602]
[1738851212282,5.06539183,198.89,198.86,0.03710602]
[1738851214187,5.027,198.88,198.86,0.03710602]
[1738851214788,0.03869183,198.89,198.86,0.03710602]
[1738851216889,5.06549183,198.89,198.86,0.03710602]
[1738851217094,0.03869183,198.89,198.86,0.03710602]
[1738851217492,5.0269,198.88,198.86,0.03710602]
[1738851218495,0.03869183,198.89,198.86,0.03710602]
[1738851220092,122.89703886,199.04,198.86,21.86114012]
[1738851220295,25.56020887,199.02,198.89,21.8240341]
[1738851220597,25.56020887,199.02,198.91,13.6380449]
[1738851221101,0.03637121,198.98,198.95,0.03251538]
[1738851221396,0.03637121,198.98,198.95,5.05761538]
[1738851221597,0.03637121,198.98,198.95,0.03251538]
[1738851226198,0.03637121,198.98,198.88,13.6380449]
[1738851226501,13.6380449,199.01,198.88,13.6380449]
[1738851226894,5.0246,198.98,198.91,5.0261]
[1738851227091,13.6380449,199.01,198.91,5.0261]
[1738851227401,0.03380466,198.98,198.94,0.0332727]
[1738851227600,5.025,198.96,198.94,0.0332727]
[1738851228601,5.025,198.96,198.91,5.0261]
[1738851228905,0.03380466,198.98,198.88,13.6380449]
[1738851229198,13.6380449,198.95,198.82,13.6380449]
[1738851229896,0.03654242,198.9,198.87,0.03715847]
[1738851231395,5.06294242,198.9,198.87,0.03715847]
[1738851232102,0.03654242,198.9,198.87,0.03715847]
[1738851233604,5.06304242,198.9,198.87,0.03715847]
[1738851235508,5.0266,198.89,198.87,0.03715847]
[1738851235806,0.03654242,198.9,198.87,0.03715847]
[1738851236306,5.06294242,198.9,198.87,0.03715847]
[1738851237104,5.0267,198.89,198.87,0.03715847]
[1738851237507,0.03654242,198.9,198.87,0.03715847]
[1738851238810,5.0266,198.89,198.87,0.03715847]
[1738851239206,0.03654242,198.9,198.87,0.03715847]
[1738851239611,5.0268,198.89,198.87,0.03715847]
[1738851240315,5.0269,198.88,198.87,0.03715847]
[1738851242916,0.03654242,198.9,198.87,0.03715847]
[1738851245218,0.03654242,198.9,198.88,5.0267]
[1738851247219,5.0266,198.89,198.87,0.03715847]
[1738851247419,0.03654242,198.9,198.87,0.03715847]
[1738851248017,0.03654242,198.9,198.87,13.67520337]
[1738851248425,0.03654242,198.9,198.88,5.0269]
[1738851250231,0.03654242,198.9,198.87,13.67520337]
[1738851250433,0.03654242,198.9,198.87,0.03715847]
[1738851250731,5.06294242,198.9,198.87,0.03715847]
[1738851252338,0.03654242,198.9,198.87,0.03715847]
[1738851253634,5.0266,198.89,198.87,0.03715847]
[1738851256035,0.03654242,198.9,198.88,13.6380449]
[1738851256333,45.98033352,199.03,198.88,13.6380449]
[1738851256536,1.6368,198.99,198.92,13.6380449]
[1738851256837,1.6368,198.99,198.95,13.6380449]
[1738851257031,5.0236,199.01,198.95,18.6629449]
[1738851257234,3.2611,199.02,198.95,13.6380449]
[1738851257729,0.03344309,199.0,198.97,0.03552402]
[1738851258637,0.03344309,199.0,198.98,13.6380449]
[1738851259231,0.03344309,199.0,198.99,5.0241]
[1738851263537,0.03344309,199.0,198.98,13.6380449]
[1738851265342,4.6713,199.11,199.03,5.023]
[1738851266333,5.0218,199.09,199.03,5.023]
[1738851266531,5.05587803,199.09,199.05,0.03480131]
[1738851266733,0.03407803,199.09,199.05,0.03480131]
[1738851266932,0.03407803,199.09,198.99,13.6380449]
[1738851267237,13.6380449,199.1,198.96,13.6380449]
[1738851268041,5.0231,199.04,198.96,13.6380449]
[1738851268341,5.0231,199.04,199.01,0.0380165]
[1738851268741,5.0231,199.03,199.01,0.0380165]
[1738851269437,0.03707152,199.05,198.92,13.6380449]
[1738851269642,1.6258,199.02,198.92,13.6380449]
[1738851270740,0.03802213,198.99,198.97,5.0244]
[1738851270941,0.03802213,198.99,198.95,0.03185048]
[1738851271349,0.03802213,198.99,198.98,5.0243]
[1738851272845,0.03802213,198.99,198.97,5.0246]
[1738851275449,0.03802213,198.99,198.95,0.03185048]
[1738851275642,0.03802213,198.99,198.98,5.0243]
[1738851280348,0.03802213,198.99,198.95,0.03185048]
[1738851281350,0.03802213,198.99,198.97,5.0244]
[1738851281742,0.03802213,198.99,198.95,0.03185048]
[1738851282142,0.03802213,198.99,198.95,5.05685048]
[1738851283551,5.0249,198.96,198.95,0.03185048]
[1738851283751,5.0249,198.96,198.91,5.026]
[1738851284149,5.0247,198.97,198.91,5.026]
[1738851284351,5.0247,198.97,198.92,5.0258]
[1738851284547,5.0247,198.97,198.89,13.6380449]
[1738851284953,0.03227876,198.95,198.91,5.06329283]
[1738851285554,0.03227876,198.95,198.91,0.03719283]
[1738851287759,5.05747876,198.95,198.91,0.03719283]
[1738851288157,0.03227876,198.95,198.91,0.03719283]
[1738851288459,0.03227876,198.95,198.92,5.0258]
[1738851288761,0.03227876,198.95,198.91,0.03719283]
[1738851288961,5.05757876,198.95,198.91,0.03719283]
[1738851289161,0.03227876,198.95,198.91,0.03719283]
[1738851290060,0.03227876,198.95,198.94,5.0254]
[1738851291263,0.03227876,198.95,198.92,13.6380449]
[1738851291464,0.03227876,198.95,198.91,0.03719283]
[1738851292064,0.03227876,198.95,198.92,5.0258]
[1738851292964,0.03227876,198.95,198.92,13.6380449]
[1738851293166,88.78325608,199.09,198.92,13.6380449]
[1738851293468,4.615,199.07,199.02,18.6612449]
[1738851294269,0.0374198,199.06,199.03,0.03188297]
[1738851295268,0.0374198,199.06,199.03,5.05498297]
[1738851295660,0.0374198,199.06,199.03,0.03188297]
[1738851296471,0.0374198,199.06,199.05,13.6380449]
[1738851296860,0.0374198,199.06,199.05,18.6606449]
[1738851297166,0.0374198,199.06,199.05,13.6380449]
[1738851298069,0.0374198,199.06,199.03,0.03188297]
[1738851300674,0.0374198,199.06,198.96,18.6627449]
[1738851300974,13.6380449,199.07,198.96,13.6380449]
[1738851301564,5.0231,199.03,198.98,5.0243]
[1738851301771,5.06144506,199.03,199.0,0.03717224]
[1738851302072,0.03834506,199.03,199.02,18.6613449]
[1738851302676,0.03834506,199.03,199.0,0.03717224]
[1738851303174,0.03834506,199.03,199.02,13.6380449]
[1738851303371,1.569,199.12,199.02,13.6380449]
[1738851303573,1.569,199.12,199.05,13.6380449]
[1738851303779,1.569,199.12,199.02,13.6380449]
[1738851303980,1.5833,199.13,199.11,13.6380449]
[1738851304275,69.93304639,199.19,199.11,13.6380449]
[1738851304478,69.93304639,199.19,199.14,5.0201]
[1738851304679,0.03604748,199.17,199.13,0.03522687]
[1738851306682,5.02,199.16,199.13,0.03522687]
[1738851307679,5.0202,199.15,199.13,0.03522687]
[1738851307978,5.0202,199.15,199.09,5.0213]
[1738851308872,5.0203,199.14,199.08,5.0218]
[1738851309079,1.5094,199.18,199.1,0.03504447]
[1738851309283,0.03714551,199.13,199.04,21.78458386]
[1738851309875,5.0208,199.12,199.04,21.78458386]
[1738851310172,0.03714551,199.13,199.04,21.78458386]
[1738851310375,5.0213,199.11,199.06,0.03868147]
[1738851310978,5.0214,199.1,199.06,0.03868147]
[1738851311382,0.03714551,199.13,198.95,21.78458386]
[1738851311578,21.78458386,199.11,198.95,21.78458386]
[1738851311783,21.78458386,199.08,198.94,6.95128595]
[1738851312680,0.03859857,199.03,198.99,0.03227096]
[1738851312878,0.03859857,199.03,198.94,6.95128595]
[1738851313783,5.0246,198.97,198.94,6.95128595]
[1738851313987,3.7,199.04,198.94,6.95128595]
[1738851314291,0.03583907,198.97,198.94,0.03777844]
[1738851314480,5.0239,199.0,198.95,5.0249]
[1738851314791,0.03595922,199.01,198.95,5.0249]
[1738851314985,5.0239,199.0,198.94,0.03777844]
[1738851315182,0.03595922,199.01,198.96,5.0248]
[1738851315380,0.03595922,199.01,198.94,0.03777844]
[1738851315579,5.0242,198.99,198.94,0.03777844]
[1738851315782,0.03595922,199.01,198.94,0.03777844]
[1738851316087,5.0261,198.92,198.87,5.0271]
[1738851316479,21.78458386,199.01,198.84,21.78458386]
[1738851316680,5.0266,198.9,198.85,5.0275]
[1738851317083,21.78458386,198.97,198.8,21.78458386]
[1738851317290,5.06426219,198.89,198.86,0.03355396]
[1738851317598,21.78458386,198.97,198.86,0.03355396]
[1738851317789,5.0271,198.87,198.86,0.03355396]
[1738851318488,0.03676766,198.88,198.78,27.56894622]
[1738851319191,5.0279,198.85,198.79,5.0289]
[1738851319392,1.5633,198.87,198.77,21.78458386]
[1738851319693,0.03331696,198.84,198.8,0.03172296]
[1738851320283,5.0282,198.83,198.8,0.03172296]
[1738851320486,0.03331696,198.84,198.8,0.03172296]
[1738851320995,0.03331696,198.84,198.82,5.0282]
[1738851321192,0.03331696,198.84,198.8,0.03172296]
[1738851321393,5.0286,198.81,198.71,21.78458386]
[1738851321696,1.5363,198.83,198.71,21.78458386]
[1738851322091,5.0296,198.78,198.71,21.78458386]
[1738851322291,1.5363,198.83,198.71,21.78458386]
[1738851322797,0.03545408,198.79,198.75,0.03500413]
[1738851323498,0.03545408,198.79,198.75,5.06500413]
[1738851323889,0.03545408,198.79,198.75,0.03500413]
[1738851324497,0.03545408,198.79,198.76,5.0298]
[1738851324697,0.03545408,198.79,198.75,0.03500413]
[1738851325199,0.03545408,198.79,198.75,5.06510413]
[1738851326701,0.03545408,198.79,198.75,0.03500413]
[1738851327502,5.06465408,198.79,198.75,0.03500413]
[1738851328196,0.03545408,198.79,198.75,0.03500413]
[1738851328793,0.03545408,198.79,198.76,5.0299]
[1738851329702,0.03545408,198.79,198.75,0.03500413]
[1738851329998,0.03545408,198.79,198.65,21.78458386]
[1738851330303,21.78458386,198.82,198.65,21.78458386]
[1738851330696,13.67612713,198.77,198.64,13.67612713]
[1738851330898,1.6425,198.76,198.64,13.67612713]
[1738851331200,0.031683,198.72,198.68,0.03480873]
[1738851332604,0.031683,198.72,198.71,5.0312]
[1738851332902,0.031683,198.72,198.68,0.03480873]
[1738851333101,0.031683,198.72,198.71,5.0312]
[1738851334904,0.031683,198.72,198.7,5.0314]
[1738851335107,0.031683,198.72,198.68,0.03480873]
[1738851335505,0.031683,198.72,198.69,5.0316]
[1738851335705,0.031683,198.72,198.68,0.03480873]
[1738851336706,5.0321,198.68,198.6,21.87156078]
[1738851337007,5.0321,198.68,198.63,5.033]
[1738851337405,5.0321,198.68,198.62,5.0334]
[1738851337707,0.03174324,198.66,198.62,0.02287852]
[1738851338207,0.03581162,198.66,198.62,0.02287852]
[1738851338607,0.03581162,198.66,198.65,5.0327]
[1738851339407,0.03581162,198.66,198.62,0.02287852]
[1738851342305,5.033,198.64,198.62,0.02287852]
[1738851342511,1.6487,198.65,198.54,21.87156078]
[1738851342810,3.2168,198.65,198.54,21.87156078]
[1738851343006,5.0332,198.63,198.58,5.0342]
[1738851343510,5.0335,198.62,198.58,5.0342]
[1738851343711,5.06809963,198.62,198.58,5.0342]
[1738851343906,5.06809963,198.62,198.54,21.87156078]
[1738851344107,5.0337,198.61,198.57,5.0347]
[1738851344611,0.03459963,198.62,198.56,5.0349]
[1738851344811,5.0342,198.6,198.56,5.0349]
[1738851345014,0.03507768,198.61,198.51,67.60990455]
[1738851345401,5.0344,198.59,198.51,67.60990455]
[1738851345711,3.2168,198.65,198.51,21.87156078]
[1738851345908,5.035,198.56,198.48,21.87156078]
[1738851346109,0.03327295,198.57,198.48,21.87156078]
[1738851346310,0.03327295,198.57,198.51,5.036]
[1738851346705,21.87156078,198.62,198.51,5.036]
[1738851346903,0.0362883,198.56,198.48,21.87156078]
[1738851349414,1.6259,198.64,198.54,21.87156078]
[1738851349622,1.6259,198.64,198.6,5.0338]
[1738851349917,1.5806,198.7,198.57,21.87156078]
[1738851350120,5.032,198.68,198.62,5.0333]
[1738851350314,4.7264,198.7,198.57,21.87156078]
[1738851350619,4.7264,198.7,198.53,0.2544]
[1738851350620,4.7264,198.7,198.6,21.87156078]
[1738851350819,0.03471078,198.65,198.62,0.03393709]
[1738851351515,0.03471078,198.65,198.64,5.0329]
[1738851352418,0.03471078,198.65,198.62,5.06713709]
[1738851352721,0.03471078,198.65,198.62,0.03393709]
[1738851353224,0.03471078,198.65,198.62,5.06733709]
[1738851353924,0.03471078,198.65,198.62,0.03393709]
[1738851355015,0.03471078,198.65,198.51,22.34306078]
[1738851355220,5.0338,198.61,198.55,5.035]
[1738851356224,0.03556617,198.6,198.55,5.035]
[1738851356523,0.03556617,198.6,198.57,5.0346]
[1738851357027,0.03556617,198.6,198.55,5.035]
[1738851357225,0.03556617,198.6,198.51,22.34306078]
[1738851358226,0.03556617,198.6,198.53,5.0356]
[1738851358426,0.03556617,198.6,198.51,22.34306078]
[1738851359020,0.03556617,198.6,198.57,5.0347]
[1738851359325,0.03556617,198.6,198.51,21.87156078]
[1738851359526,0.03556617,198.6,198.48,67.61918494]
[1738851360028,0.03399763,198.56,198.48,67.61918494]
[1738851360929,5.06899763,198.56,198.5,5.0364]
[1738851361225,5.06899763,198.56,198.44,43.16433457]
[1738851361226,0.03399763,198.56,198.44,43.16433457]
[1738851361433,24.99526078,198.55,198.44,43.16433457]
[1738851361932,0.0342207,198.51,198.44,43.16433457]
[1738851362130,5.0373,198.47,198.44,43.16433457]
[1738851362522,5.0377,198.46,198.44,43.16433457]
[1738851362925,21.87156078,198.52,198.38,6.95128595]
[1738851363131,0.03675715,198.47,198.38,11.99078595]
[1738851363331,0.03675715,198.47,198.38,6.95128595]
[1738851363834,5.0385,198.43,198.38,6.95128595]
[1738851364032,3.1007,198.42,198.38,6.95128595]
[1738851364433,3.13889295,198.42,198.38,6.95128595]
[1738851364625,0.03819295,198.42,198.38,6.95128595]
[1738851365437,5.0389,198.41,198.38,6.95128595]
[1738851365741,0.03819295,198.42,198.38,6.95128595]
[1738851366128,5.0392,198.4,198.38,4.47548595]
[1738851366333,0.03819295,198.42,198.37,15.66536027]
[1738851366534,43.74312156,198.4,198.35,65.43840137]
[1738851366738,21.87156078,198.36,198.33,131.4122426]
[1738851366933,5.0406,198.34,198.33,86.8672871]
[1738851367238,5.0406,198.34,198.33,70.6847871]
[1738851367432,5.0406,198.34,198.33,43.1255871]
[1738851367631,5.0406,198.34,198.33,33.4237871]
[1738851368030,5.0406,198.34,198.33,13.1469871]
[1738851368230,5.0406,198.34,198.33,5.1910871]
[1738851368431,0.03665365,198.35,198.33,5.1910871]
[1738851370835,0.03665365,198.35,198.28,21.87156078]
[1738851370836,130.50471598,198.34,198.28,21.87156078]
[1738851371040,130.50471598,198.34,198.29,1.6471]
[1738851371533,122.71301598,198.34,198.31,21.87156078]
[1738851371734,81.11556305,198.34,198.31,21.87156078]
[1738851371936,60.22606305,198.34,198.31,21.87156078]
[1738851372139,26.90796078,198.51,198.31,21.87156078]
[1738851372436,21.87156078,198.51,198.35,21.87156078]
[1738851372641,5.0371,198.48,198.36,5.04]
[1738851373146,0.03661031,198.45,198.41,0.03259361]
[1738851374248,0.03661031,198.45,198.42,21.87156078]
[1738851374545,0.03661031,198.45,198.41,0.03259361]
[1738851376352,21.90817109,198.45,198.41,0.03259361]
[1738851376651,21.90817109,198.45,198.34,5.0404]
[1738851376846,5.0383,198.43,198.32,5.0409]
[1738851377040,1.6013,198.44,198.32,5.0409]
[1738851377342,21.87156078,198.41,198.25,1.6458]
[1738851377550,21.87156078,198.38,198.21,21.87156078]
[1738851377750,0.03779952,198.35,198.21,21.87156078]
[1738851378246,21.87156078,198.38,198.21,21.87156078]
[1738851378442,0.03397993,198.3,198.21,21.87156078]
[1738851379746,0.03397993,198.3,198.24,21.87156078]
[1738851380142,1.5969,198.4,198.27,21.87156078]
[1738851380346,0.03466345,198.29,198.28,1.58]
[1738851380546,1.5969,198.4,198.28,1.58]
[1738851381450,1.5969,198.4,198.24,21.87156078]
[1738851381650,1.6146,198.39,198.24,21.87156078]
[1738851381849,0.03767468,198.36,198.32,0.03251038]
[1738851382755,5.0406,198.34,198.32,0.03251038]
[1738851383052,0.03767468,198.36,198.32,0.03251038]
[1738851383252,5.07797468,198.36,198.32,0.03251038]
[1738851383454,0.03767468,198.36,198.32,0.03251038]
[1738851384556,5.07787468,198.36,198.32,0.03251038]
[1738851386153,5.0403,198.35,198.32,0.03251038]
[1738851386451,21.87156078,198.35,198.19,1.58]
[1738851386856,5.0413,198.32,198.19,1.58]
[1738851387157,5.0413,198.32,198.25,5.0426]
[1738851387357,5.0413,198.32,198.19,1.58]
[1738851387358,21.87156078,198.38,198.21,21.87156078]
[1738851387755,0.03465958,198.31,198.21,21.87156078]
[1738851389350,0.03465958,198.31,198.24,21.87156078]
[1738851389551,5.0402,198.36,198.24,21.87156078]
[1738851389859,0.03564881,198.29,198.28,5.0421]
[1738851390053,5.0402,198.36,198.28,5.0421]
[1738851390260,0.03436505,198.3,198.24,21.87156078]
[1738851390457,5.0411,198.32,198.21,21.87156078]
[1738851390654,0.03796689,198.29,198.21,21.87156078]
[1738851391160,0.03796689,198.29,198.24,5.0429]
[1738851391666,0.03796689,198.29,198.27,5.0423]
[1738851392362,0.03796689,198.29,198.21,21.87156078]
[1738851393358,0.03796689,198.29,198.24,5.0429]
[1738851393755,0.03796689,198.29,198.23,5.0433]
[1738851393955,0.03796689,198.29,198.19,1.58]
[1738851394666,5.0426,198.26,198.2,5.0439]
[1738851394861,3.0722,198.28,198.12,3.1816]
[1738851395165,0.03520911,198.22,198.12,4.8218]
[1738851396863,0.03520911,198.22,198.17,5.0447]
[1738851397164,0.03520911,198.22,198.12,4.8218]
[1738851397967,0.03520911,198.22,198.18,5.0446]
[1738851398169,5.07900911,198.22,198.12,4.8218]
[1738851398464,0.03520911,198.22,198.15,5.0452]
[1738851398666,0.03520911,198.22,198.12,4.8218]
[1738851398868,0.03520911,198.22,198.12,1.6402]
[1738851399068,0.03520911,198.22,198.14,5.0456]
[1738851399266,0.03520911,198.22,198.12,1.6402]
[1738851400663,0.03520911,198.22,198.18,5.0446]
[1738851400863,0.03520911,198.22,198.13,21.87156078]
[1738851401068,0.03520911,198.22,198.16,21.87156078]
[1738851401267,0.03520911,198.22,198.21,5.0439]
[1738851401961,5.0416,198.3,198.24,5.0429]
[1738851402162,3.1441,198.34,198.2,0.03867636]
[1738851402369,3.1441,198.34,198.19,21.87156078]
[1738851402569,5.0411,198.33,198.27,5.0423]
[1738851402759,3.1441,198.34,198.19,21.87156078]
[1738851403064,26.51156078,198.38,198.19,21.87156078]
[1738851403363,0.03516039,198.28,198.25,0.03510497]
[1738851403569,21.87156078,198.38,198.25,0.03510497]
[1738851403867,21.87156078,198.38,198.22,21.87156078]
[1738851404169,5.04,198.37,198.22,21.87156078]
[1738851404669,5.04,198.37,198.27,5.0423]
[1738851404868,0.03464687,198.31,198.28,0.03650942]
[1738851405363,0.03833737,198.31,198.28,0.03650942]
[1738851406367,5.0416,198.3,198.28,0.03650942]
[1738851406567,0.03833737,198.31,198.28,0.03650942]
[1738851406966,21.87156078,198.29,198.17,3.1977]
[1738851407567,21.87156078,198.29,198.19,5.0444]
[1738851408270,0.03629617,198.26,198.22,0.03800719]
[1738851409667,5.07899617,198.26,198.22,0.03800719]
[1738851410067,0.03629617,198.26,198.22,0.03800719]
[1738851410772,0.03629617,198.26,198.24,5.0429]
[1738851410968,0.03629617,198.26,198.22,0.03800719]
[1738851412072,5.0429,198.25,198.22,0.03800719]
[1738851412264,0.03629617,198.26,198.22,0.03800719]
[1738851412974,5.043,198.25,198.22,0.03800719]
[1738851413274,0.03629617,198.26,198.22,0.03800719]
[1738851417474,5.07909617,198.26,198.22,5.08140719]
[1738851417776,0.03629617,198.26,198.22,0.03800719]
[1738851417977,5.0433,198.24,198.22,0.03800719]
[1738851418375,0.03629617,198.26,198.22,0.03800719]
[1738851419279,5.0434,198.23,198.22,0.03800719]
[1738851419984,0.03629617,198.26,198.22,0.03800719]
[1738851420482,5.0434,198.23,198.22,0.03800719]
[1738851423673,5.0431,198.24,198.22,0.03800719]
[1738851423880,0.03629617,198.26,198.22,0.03800719]
[1738851424287,0.03629617,198.26,198.25,5.0428]
[1738851426273,0.03629617,198.26,198.23,6.5839]
[1738851426772,0.03629617,198.26,198.23,1.5407]
[1738851427477,0.03629617,198.26,198.22,0.03800719]
[1738851427683,5.0434,198.23,198.22,0.03800719]
[1738851427983,21.87156078,198.25,198.22,0.03800719]
[1738851428375,5.0432,198.24,198.22,0.03800719]
[1738851428580,21.87156078,198.25,198.22,0.03800719]
[1738851428781,0.03629617,198.26,198.22,0.03800719]
[1738851430786,21.87156078,198.23,198.13,27.89898863]
[1738851431083,5.044,198.21,198.13,27.89898863]
[1738851431382,21.87156078,198.23,198.13,27.89898863]
[1738851431585,21.87156078,198.19,198.14,27.89898863]
[1738851431774,5.0439,198.21,198.14,27.89898863]
[1738851431976,0.03629157,198.18,198.14,27.89898863]
[1738851434981,0.03629157,198.18,198.1,5.0465]
[1738851435184,0.03629157,198.18,198.07,1.6469]
[1738851435481,21.87156078,198.15,198.02,6.99637197]
[1738851435686,3.2101,198.14,198.02,6.99637197]
[1738851436080,0.03246598,198.1,198.02,6.99637197]
[1738851436280,0.03246598,198.1,198.06,5.0475]
[1738851436477,0.03246598,198.1,198.02,6.99637197]
[1738851437388,0.03246598,198.1,198.06,5.0477]
[1738851437685,0.03246598,198.1,198.02,6.99637197]
[1738851438088,0.03246598,198.1,198.05,5.0478]
[1738851438880,0.03246598,198.1,197.98,1.6469]
[1738851439186,21.87156078,198.15,197.98,23.51846078]
[1738851439392,0.03384169,198.06,197.98,23.51846078]
[1738851439589,0.03384169,198.06,198.03,5.0483]
[1738851440790,0.03384169,198.06,198.04,5.0481]
[1738851440989,21.87156078,198.15,198.04,5.0481]
[1738851441495,21.87156078,198.12,198.04,5.0481]
[1738851442289,0.03741464,198.1,198.06,0.03510461]
[1738851443997,21.87156078,198.08,198.06,0.03510461]
[1738851444592,1.5521,198.09,198.06,0.03510461]
[1738851445093,0.03741464,198.1,198.06,0.03510461]
[1738851446095,5.0448,198.18,198.06,0.03510461]
[1738851446298,5.0448,198.18,198.07,21.87156078]
[1738851447095,1.5937,198.24,198.07,21.87156078]
[1738851447096,5.0441,198.2,198.09,5.0469]
[1738851447298,1.5937,198.24,198.07,21.87156078]
[1738851447493,0.03323236,198.14,198.11,0.03402887]
[1738851447694,1.6042,198.25,198.11,0.03402887]
[1738851447895,1.6042,198.25,198.11,3.2831]
[1738851448291,22.03318882,198.29,198.13,21.87156078]
[1738851448696,5.0425,198.27,198.15,5.0454]
[1738851448996,0.03748839,198.23,198.19,0.03725545]
[1738851449400,20.47658882,198.29,198.19,21.90881623]
[1738851449702,18.00128882,198.29,198.24,5.043]
[1738851449900,10.69388882,198.29,198.24,5.043]
[1738851450197,10.69388882,198.29,198.25,21.87156078]
[1738851450395,8.882e-05,198.29,198.28,5.0421]
[1738851450595,0.03222276,198.29,198.28,21.87156078]
[1738851450893,73.60865531,198.32,198.28,21.87156078]
[1738851451102,81.22728981,198.33,198.31,26.91286078]
[1738851451400,154.72084023,198.35,198.31,21.87156078]
[1738851451603,5.0365,198.51,198.37,5.0396]
[1738851451894,76.77438055,198.52,198.34,21.87156078]
[1738851452100,0.03713935,198.35,198.32,5.0409]
[1738851452299,21.87156078,198.49,198.32,5.0409]
[1738851452494,21.87156078,198.46,198.28,21.87156078]
[1738851452694,0.03762892,198.35,198.32,0.03697297]
[1738851452901,5.0387,198.42,198.32,0.03697297]
[1738851453100,21.87156078,198.43,198.28,21.87156078]
[1738851453294,0.03536597,198.35,198.28,21.87156078]
[1738851453497,0.03536597,198.35,198.25,21.87156078]
[1738851453801,0.03536597,198.35,198.3,0.0365383]
[1738851453992,21.87156078,198.43,198.3,0.0365383]
[1738851454196,21.87156078,198.4,198.3,0.0365383]
[1738851454403,5.0416,198.3,198.29,5.435e-05]
[1738851454821,21.87156078,198.4,198.33,0.03819846]
[1738851455011,21.87156078,198.4,198.29,5.435e-05]
[1738851455209,0.03775837,198.38,198.29,5.435e-05]
[1738851455408,0.03775837,198.38,198.35,2.99e-05]
[1738851455908,5.0402,198.36,198.35,2.99e-05]
[1738851456111,1.5063,198.37,198.21,20.90261666]
[1738851456311,1.5966,198.35,198.21,20.90261666]
[1738851456510,5.0415,198.31,198.21,20.90261666]
[1738851456811,1.5966,198.35,198.21,20.90261666]
[1738851457414,0.03589934,198.3,198.26,0.03488423]
[1738851458015,9.934e-05,198.3,198.29,5.0418]
[1738851458709,1.5883,198.46,198.27,35.70439924]
[1738851458912,1.5883,198.46,198.3,35.70439924]
[1738851459113,6.6259,198.46,198.33,5.0407]
[1738851459412,35.70439924,198.44,198.29,5.14310593]
[1738851459608,5.0389,198.41,198.29,5.14310593]
[1738851459915,35.70439924,198.41,198.29,5.14310593]
[1738851460115,0.03792446,198.38,198.35,0.03175126]
[1738851460314,35.7423237,198.38,198.35,0.03175126]
[1738851460906,5.04,198.37,198.35,0.03175126]
[1738851461610,5.0406,198.34,198.32,20.90261666]
[1738851461809,35.70439924,198.33,198.32,15.95371666]
[1738851462010,35.70439924,198.33,198.31,55.1066955]
[1738851462208,5.0411,198.32,198.31,55.1066955]
[1738851462407,5.0411,198.32,198.21,55.1066955]
[1738851462614,5.0419,198.29,198.21,55.1066955]
[1738851462811,35.70439924,198.3,198.21,55.1066955]
[1738851463212,35.70439924,198.3,198.23,0.03424536]
[1738851463815,0.0349213,198.28,198.23,0.03424536]
[1738851464819,5.0424,198.27,198.23,0.03424536]
[1738851465019,0.0349213,198.28,198.23,0.03424536]
[1738851465517,35.70439924,198.26,198.15,1.4961]
[1738851466422,35.70439924,198.26,198.13,55.1066955]
[1738851466619,35.70439924,198.26,198.13,1.00943824]
[1738851466922,0.03226991,198.21,198.18,0.0378085]
[1738851468522,0.03226991,198.21,198.19,5.0443]
[1738851469023,5.0414,198.31,198.18,0.0378085]
[1738851469225,35.70439924,198.33,198.18,0.0378085]
[1738851469422,9.8822,198.34,198.24,5.0431]
[1738851469616,5.0407,198.34,198.2,35.70439924]
[1738851469820,35.70439924,198.37,198.21,3.1107]
[1738851470125,0.03227742,198.29,198.25,0.03598578]